bitfinex/quotes_SOLUSD_20230120
["timestamp","ask_amount","ask_price","bid_price","bid_amount"]
[1674245948034,15.3437301,23.776,23.761,41.71576951]
[1674245948233,15.3437301,23.776,23.762,27.87124951]
[1674245948440,15.3437301,23.776,23.763,4.1153]
[1674245948765,15.3437301,23.776,23.764,10.96]
[1674245948960,2.475,23.775,23.765,4.11496]
[1674245949384,15.3437301,23.776,23.765,4.11496]
[1674245950949,0.0037301,23.776,23.766,0.96]
[1674245951181,0.0037301,23.776,23.766,41.71576951]
[1674245951711,2.473,23.792,23.767,57.51153902]
[1674245951940,2.473,23.799,23.768,17.0]
[1674245952133,2.473,23.799,23.77,22.47]
[1674245952344,2.472,23.803,23.771,31.56]
[1674245952664,16.818468,23.812,23.78,22.67]
[1674245952879,2.474,23.811,23.781,115.632]
[1674245953082,2.474,23.811,23.782,17.0]
[1674245953302,2.474,23.811,23.782,40.75576951]
[1674245953507,5.0,23.8,23.783,32.5]
[1674245953713,5.0,23.8,23.784,47.0]
[1674245953925,16.818468,23.812,23.785,32.5]
[1674245954248,16.818468,23.812,23.786,40.75576951]
[1674245954460,16.818468,23.812,23.79,22.67]
[1674245954774,16.818468,23.812,23.787,0.96]
[1674245954977,22.67,23.81,23.791,10.0]
[1674245955188,2.474,23.809,23.791,10.0]
[1674245955397,22.45,23.8,23.786,50.84557233]
[1674245955614,2.475,23.799,23.784,10.0]
[1674245955932,22.45,23.8,23.784,10.0]
[1674245955933,22.67,23.8,23.784,10.0]
[1674245956141,2.475,23.799,23.784,10.0]
[1674245956546,2.475,23.799,23.78,23.75576951]
[1674245956755,2.475,23.799,23.775,10.0]
[1674245957089,22.67,23.81,23.776,55.30576951]
[1674245957278,2.474,23.809,23.777,5.14439541]
[1674245957493,2.473,23.811,23.78,22.58]
[1674245957715,16.818468,23.812,23.781,58.54]
[1674245958034,16.818468,23.812,23.782,0.96]
[1674245958348,22.67,23.8,23.781,10.0]
[1674245958538,22.67,23.8,23.781,14.11219]
[1674245958749,22.67,23.79,23.781,4.11219]
[1674245958978,2.475,23.789,23.782,4.11202]
[1674245959393,22.475,23.789,23.782,4.11202]
[1674245959603,17.0,23.788,23.782,4.11202]
[1674245959811,17.0,23.788,23.772,10.0]
[1674245959812,22.475,23.787,23.75,31.58]
[1674245960025,22.52,23.78,23.768,4.11444]
[1674245960853,2.475,23.785,23.768,4.11444]
[1674245961915,2.474,23.788,23.768,4.11444]
[1674245962334,12.473,23.799,23.769,10.0]
[1674245962547,12.473,23.799,23.77,4.11409]
[1674245962761,22.52,23.79,23.77,45.979687]
[1674245962974,22.67,23.78,23.77,4.11409]
[1674245963827,24.15,23.78,23.77,4.11409]
[1674245964008,19.475,23.779,23.77,4.11409]
[1674245964218,10.0,23.799,23.77,4.11409]
[1674245964219,24.15,23.79,23.77,4.11409]
[1674245964542,24.33,23.8,23.772,10.0]
[1674245964756,16.818468,23.812,23.773,119.3574]
[1674245964979,24.15,23.81,23.774,31.55]
[1674245965288,24.15,23.81,23.776,10.0]
[1674245965484,24.15,23.81,23.777,49.51]
[1674245965695,24.15,23.81,23.777,56.26576951]
[1674245965905,24.01,23.8,23.777,0.96]
[1674245966125,24.01,23.8,23.776,10.0]
[1674245966842,24.15,23.79,23.772,10.0]
[1674245967061,23.98,23.78,23.76,10.0]
[1674245967280,24.15,23.79,23.768,4.11444]
[1674245967493,96.62,23.8,23.768,4.11444]
[1674245967494,10.0,23.799,23.768,4.11444]
[1674245967708,23.98,23.79,23.768,4.11444]
[1674245968124,20.0,23.798,23.768,4.11444]
[1674245968437,20.0,23.798,23.77,10.0]
[1674245968640,20.0,23.803,23.771,52.67392]
[1674245968854,20.0,23.803,23.772,0.96]
[1674245969057,116.2876,23.804,23.773,31.55]
[1674245969385,116.2876,23.804,23.775,10.0]
[1674245969602,116.2876,23.804,23.776,31.55]
[1674245969790,24.15,23.8,23.775,10.0]
[1674245970001,10.0,23.799,23.775,10.0]
[1674245970326,14.14215,23.799,23.775,10.0]
[1674245970565,23.97,23.79,23.775,10.0]
[1674245971068,17.0,23.789,23.769,10.0]
[1674245971285,20.0,23.788,23.769,10.0]
[1674245971468,24.15,23.78,23.762,10.0]
[1674245971673,37.0,23.779,23.761,10.0]
[1674245971888,37.0,23.779,23.76,10.0]
[1674245972095,23.97,23.77,23.76,10.0]
[1674245972328,23.97,23.77,23.745,10.0]
[1674245972521,23.93,23.77,23.759,4.116]
[1674245972941,17.0,23.769,23.759,4.116]
[1674245973156,20.0,23.768,23.745,10.0]
[1674245973578,17.0,23.767,23.745,10.0]
[1674245973794,20.0,23.766,23.745,10.0]
[1674245974117,17.0,23.765,23.745,10.0]
[1674245974350,23.98,23.76,23.745,10.0]
[1674245974542,17.0,23.765,23.746,4.11825]
[1674245974736,20.0,23.764,23.746,4.11825]
[1674245975155,20.0,23.769,23.746,4.11825]
[1674245975361,17.0,23.768,23.746,4.11825]
[1674245975696,20.0,23.767,23.746,4.11825]
[1674245975882,24.15,23.77,23.746,4.11825]
[1674245976227,24.15,23.78,23.747,23.75576951]
[1674245976414,24.15,23.78,23.748,45.7079]
[1674245976757,24.15,23.79,23.749,47.87349951]
[1674245976934,24.15,23.79,23.75,53.65756]
[1674245977144,24.15,23.79,23.751,24.11738]
[1674245977355,24.15,23.79,23.752,59.54]
[1674245977571,24.15,23.79,23.752,83.29576951]
[1674245977778,24.15,23.8,23.754,6.02278833]
[1674245977986,24.15,23.8,23.755,53.65669]
[1674245978218,24.15,23.8,23.756,132.1143]
[1674245978426,24.15,23.8,23.757,63.64634]
[1674245978654,24.15,23.8,23.758,24.11617]
[1674245978850,24.15,23.8,23.759,53.646]
[1674245979062,24.15,23.8,23.76,14.11582]
[1674245979267,24.03,23.81,23.762,7.91575749]
[1674245979486,24.03,23.81,23.764,7.37832592]
[1674245979706,24.03,23.81,23.765,55.67496]
[1674245979916,24.03,23.81,23.766,21.11478]
[1674245980134,24.03,23.81,23.767,52.52]
[1674245980347,28.17215,23.81,23.767,76.27576951]
[1674245980655,24.14215,23.809,23.768,50.25576951]
[1674245980873,24.15,23.8,23.769,32.52]
[1674245981055,4.14215,23.808,23.77,37.0]
[1674245981265,4.14215,23.808,23.772,10.0]
[1674245981489,4.14215,23.808,23.773,69.51]
[1674245981812,4.14215,23.808,23.774,7.72314026]
[1674245982007,4.14215,23.808,23.775,69.51]
[1674245982351,4.14215,23.808,23.777,10.0]
[1674245982656,4.14215,23.808,23.778,69.51]
[1674245982843,4.14215,23.808,23.778,93.26576951]
[1674245983054,4.14215,23.808,23.779,23.75576951]
[1674245983266,4.14215,23.808,23.78,69.5]
[1674245983477,4.14215,23.808,23.781,10.0]
[1674245983820,4.14215,23.808,23.782,69.5]
[1674245984003,4.14215,23.808,23.782,93.25576951]
[1674245984214,4.14215,23.808,23.783,28.97595297]
[1674245984546,4.14215,23.808,23.784,93.25576951]
[1674245984762,16.810247,23.822,23.79,24.15]
[1674245984956,16.810247,23.822,23.792,5.03012411]
[1674245985153,16.810247,23.822,23.793,68.53]
[1674245985369,16.810247,23.822,23.794,0.96]
[1674245985602,16.810247,23.822,23.795,31.52]
[1674245985805,16.810247,23.822,23.796,17.96]
[1674245986127,16.810247,23.822,23.8,24.15]
[1674245986306,0.000247,23.822,23.802,4.08867595]
[1674245986513,10.0,23.836,23.803,31.51]
[1674245986747,10.0,23.836,23.802,109.5663]
[1674245986946,24.15,23.84,23.802,109.5663]
[1674245987279,4.14215,23.835,23.803,51.51]
[1674245987588,4.14215,23.835,23.804,4.88941009]
[1674245987776,4.14215,23.835,23.805,31.51]
[1674245987992,4.14215,23.835,23.81,24.15]
[1674245988220,10.0,23.847,23.812,7.58723267]
[1674245988431,10.0,23.847,23.811,52.46]
[1674245988432,16.79693,23.849,23.814,4.40044039]
[1674245988621,16.79693,23.849,23.821,7.82875579]
[1674245988830,16.79693,23.849,23.813,57.63731294]
[1674245988831,16.79693,23.849,23.822,52.45]
[1674245989038,16.79693,23.849,23.815,72.13731294]
[1674245989247,24.01,23.84,23.813,57.1414724]
[1674245989474,4.143,23.839,23.813,57.1414724]
[1674245989683,4.143,23.839,23.812,10.0]
[1674245990123,23.97,23.83,23.812,10.0]
[1674245990327,4.145,23.829,23.812,10.0]
[1674245990540,24.144,23.837,23.812,10.0]
[1674245990749,17.0,23.836,23.816,10.0]
[1674245990948,23.98,23.83,23.816,10.0]
[1674245991160,41.145,23.829,23.816,10.0]
[1674245991599,23.75576951,23.828,23.816,10.0]
[1674245991797,62.04,23.827,23.816,10.0]
[1674245992217,23.75576951,23.826,23.816,10.0]
[1674245992545,50.91509927,23.825,23.804,10.0]
[1674245992742,24.15,23.81,23.805,4.10804]
[1674245992952,25.06,23.809,23.805,4.10804]
[1674245993282,25.05,23.819,23.805,4.10804]
[1674245994106,126.6,23.818,23.805,4.10804]
[1674245994320,25.06,23.817,23.805,4.10804]
[1674245994542,23.98,23.81,23.805,4.10804]
[1674245994756,45.06,23.809,23.805,4.10804]
[1674245995158,25.05,23.818,23.805,4.10804]
[1674245995576,10.0,23.826,23.805,4.10804]
[1674245995786,20.0,23.825,23.805,4.10804]
[1674245995996,10.0,23.826,23.806,0.96]
[1674245996229,126.6,23.83,23.807,35.6177]
[1674245996424,126.6,23.83,23.808,5.06752]
[1674245996637,126.6,23.829,23.809,4.10735]
[1674245996962,126.6,23.838,23.809,4.10735]
[1674245997161,25.03,23.839,23.81,0.96]
[1674245997369,25.03,23.837,23.811,4.10701]
[1674245997570,25.03,23.839,23.811,4.10701]
[1674245997782,10.0,23.837,23.811,4.10701]
[1674245997994,25.07,23.836,23.811,4.10701]
[1674245998531,25.06,23.839,23.811,4.10701]
[1674245999386,24.15,23.83,23.811,4.10701]
[1674245999595,17.0,23.829,23.811,4.10701]
[1674246000118,10.0,23.838,23.811,4.10701]
[1674246000331,20.0,23.837,23.812,22.975943]
[1674246000540,20.0,23.837,23.806,10.0]
[1674246000541,24.01,23.84,23.813,35.60666]
[1674246000733,20.0,23.839,23.814,4.10649]
[1674246000943,25.07,23.838,23.814,4.10649]
[1674246001151,20.0,23.837,23.814,4.10649]
[1674246001369,23.97,23.83,23.814,4.10649]
[1674246001791,45.08,23.829,23.814,4.10649]
[1674246002000,23.97,23.82,23.814,4.10649]
[1674246002210,25.08,23.827,23.814,4.10649]
[1674246002536,23.93,23.83,23.814,4.10649]
[1674246002942,10.0,23.829,23.814,4.10649]
[1674246003155,20.0,23.828,23.814,4.10649]
[1674246003360,24.15,23.82,23.814,4.10649]
[1674246003589,25.09,23.819,23.814,4.10649]
[1674246003780,20.0,23.818,23.814,9e-05]
[1674246003993,25.07,23.817,23.814,9e-05]
[1674246004218,37.0,23.816,23.814,9e-05]
[1674246004428,25.07,23.815,23.814,9e-05]
[1674246004643,253.97847572,23.815,23.801,4.10873]
[1674246004955,10.0,23.813,23.801,4.10873]
[1674246005169,120.75,23.81,23.801,4.10873]
[1674246005378,10.0,23.808,23.802,4.10856]
[1674246005582,51.78556753,23.807,23.763,136.6]
[1674246005798,120.63,23.79,23.778,4.11271]
[1674246005989,25.1,23.789,23.778,4.11271]
[1674246006199,30.0,23.788,23.763,136.6]
[1674246006427,24.15,23.77,23.764,4.11513]
[1674246006830,45.07,23.769,23.746,126.6]
[1674246007171,24.15,23.76,23.746,126.6]
[1674246007368,4.14215,23.759,23.747,10.0]
[1674246007693,17.0,23.758,23.747,10.0]
[1674246007895,17.0,23.758,23.744,10.0]
[1674246007896,4.14215,23.757,23.744,10.0]
[1674246008124,17.0,23.756,23.744,10.0]
[1674246008305,4.14215,23.755,23.744,10.0]
[1674246009270,23.75576951,23.765,23.744,10.0]
[1674246009465,11.65976618,23.762,23.746,126.6]
[1674246009802,23.94,23.78,23.748,126.6]
[1674246009995,4.14215,23.779,23.75,126.6]
[1674246010194,4.14215,23.779,23.752,126.6]
[1674246010405,4.14215,23.779,23.753,51.58]
[1674246010611,24.15,23.77,23.751,20.0]
[1674246010840,4.14215,23.769,23.749,10.0]
[1674246011041,24.15,23.76,23.75,31.58]
[1674246011256,4.14215,23.759,23.749,10.0]
[1674246011902,17.0,23.758,23.749,10.0]
[1674246012122,4.14215,23.757,23.749,10.0]
[1674246012514,17.0,23.756,23.749,10.0]
[1674246012730,4.14215,23.755,23.749,10.0]
[1674246012944,17.0,23.754,23.747,10.0]
[1674246013162,24.14215,23.753,23.744,10.0]
[1674246013476,24.15,23.75,23.741,10.0]
[1674246013677,96.95,23.76,23.734,10.0]
[1674246013678,4.14215,23.749,23.734,10.0]
[1674246013892,51.56,23.769,23.735,31.6]
[1674246014095,4.14215,23.768,23.735,31.6]
[1674246014299,4.14215,23.768,23.736,10.0]
[1674246014515,4.14215,23.768,23.738,5.278325]
[1674246014724,23.94,23.78,23.739,52.56]
[1674246014943,27.89791951,23.777,23.74,17.0]
[1674246015156,24.15,23.77,23.741,52.56]
[1674246015475,4.14215,23.769,23.741,32.56]
[1674246015882,41.56,23.768,23.742,10.0]
[1674246016089,23.93,23.76,23.742,10.0]
[1674246016421,4.14215,23.759,23.742,10.0]
[1674246016735,48.57,23.758,23.74,10.0]
[1674246016936,24.14215,23.757,23.74,10.0]
[1674246017151,21.14215,23.756,23.74,10.0]
[1674246017355,24.15,23.75,23.736,10.0]
[1674246017561,4.14215,23.749,23.736,10.0]
[1674246017773,4.14215,23.749,23.731,111.5673]
[1674246018616,31.56,23.767,23.735,31.6]
[1674246018950,4.14215,23.766,23.736,10.0]
[1674246019139,4.14215,23.766,23.737,26.6]
[1674246019351,23.97,23.76,23.737,26.6]
[1674246019568,4.14215,23.759,23.737,26.6]
[1674246019784,4.14215,23.759,23.736,10.0]
[1674246019985,27.89791951,23.759,23.736,10.0]
[1674246020207,17.0,23.758,23.737,31.6]
[1674246020400,4.14215,23.758,23.737,31.6]
[1674246020939,4.14215,23.758,23.738,10.0]
[1674246021130,23.75576951,23.767,23.739,51.6]
[1674246021340,4.14215,23.766,23.741,10.0]
[1674246021568,4.14215,23.766,23.742,49.55]
[1674246021762,4.14215,23.766,23.743,20.0]
[1674246021973,4.14215,23.766,23.744,41.59]
[1674246022195,4.14215,23.766,23.744,58.59]
[1674246022607,4.14215,23.766,23.745,20.0]
[1674246022819,23.94,23.78,23.747,10.0]
[1674246023032,4.14215,23.779,23.748,163.3691]
[1674246023229,27.89791951,23.779,23.749,20.96]
[1674246023566,23.75576951,23.778,23.75,31.58]
[1674246023770,41.14215,23.777,23.752,10.0]
[1674246023984,41.14215,23.777,23.744,10.0]
[1674246023985,24.15,23.76,23.744,10.0]
[1674246024179,24.14215,23.759,23.738,10.0]
[1674246024397,21.14215,23.758,23.738,10.0]
[1674246024616,55.71215,23.757,23.738,10.0]
[1674246024824,4.14215,23.756,23.738,10.0]
[1674246025146,24.15,23.75,23.738,10.0]
[1674246025355,17.0,23.749,23.738,10.0]
[1674246025664,28.29215,23.75,23.738,10.0]
[1674246025665,4.14215,23.75,23.738,10.0]
[1674246026278,24.15,23.77,23.738,10.0]
[1674246026489,4.14215,23.769,23.742,31.59]
[1674246026803,27.89791951,23.769,23.744,10.0]
[1674246027016,27.89791951,23.769,23.744,41.59]
[1674246027336,4.14215,23.769,23.744,41.59]
[1674246027663,4.14215,23.769,23.745,17.0]
[1674246027875,4.14215,23.769,23.746,42.55]
[1674246028089,4.14215,23.769,23.747,17.0]
[1674246028276,4.14215,23.769,23.748,32.55]
[1674246028483,4.14215,23.769,23.747,31.59]
[1674246028807,23.75576951,23.768,23.746,10.0]
[1674246029018,21.14215,23.767,23.746,10.0]
[1674246029345,21.14215,23.767,23.747,31.59]
[1674246029346,4.14215,23.766,23.747,31.59]
[1674246029555,4.14215,23.766,23.746,10.0]
[1674246029871,4.14215,23.766,23.747,31.59]
[1674246030605,23.75576951,23.765,23.746,10.0]
[1674246030796,24.14215,23.764,23.746,10.0]
[1674246031008,21.14215,23.763,23.746,10.0]
[1674246031236,24.15,23.76,23.746,10.0]
[1674246031429,21.14215,23.759,23.746,10.0]
[1674246031638,4.14215,23.758,23.744,10.0]
[1674246031876,4.14215,23.758,23.739,10.0]
[1674246031877,24.01,23.75,23.739,10.0]
[1674246032179,21.14215,23.749,23.739,10.0]
[1674246032402,4.14215,23.749,23.739,10.0]
[1674246032581,17.0,23.748,23.738,10.0]
[1674246032791,4.14215,23.747,23.731,10.0]
[1674246033019,17.0,23.746,23.731,10.0]
[1674246033213,24.14215,23.745,23.731,10.0]
[1674246033428,17.0,23.744,23.731,10.0]
[1674246033643,34.82551611,23.751,23.733,31.61]
[1674246033853,24.14,23.76,23.734,10.0]
[1674246034069,23.98,23.77,23.735,31.6]
[1674246034296,23.75576951,23.768,23.736,0.96]
[1674246034490,24.01,23.76,23.734,10.0]
[1674246034697,31.57,23.759,23.734,10.0]
[1674246035017,24.15,23.75,23.734,10.0]
[1674246035417,17.0,23.749,23.734,10.0]
[1674246037941,48.59,23.749,23.734,10.0]
[1674246038263,43.75576951,23.748,23.732,10.0]
[1674246038473,52.73215,23.747,23.73,10.0]
[1674246038685,34.14215,23.746,23.714,31.63]
[1674246038919,31.59,23.745,23.717,140.3376]
[1674246039111,20.0,23.744,23.717,140.3376]
[1674246039315,17.0,23.743,23.717,150.3376]
[1674246039644,24.15,23.74,23.717,118.7076]
[1674246039959,48.6,23.739,23.717,118.7076]
[1674246040581,10.0,23.738,23.717,118.7076]
[1674246040784,17.0,23.737,23.717,118.7076]
[1674246041200,24.15,23.73,23.717,10.0]
[1674246041408,17.0,23.729,23.717,10.0]
[1674246041844,43.75576951,23.728,23.711,10.0]
[1674246042060,43.75576951,23.728,23.71,10.0]
[1674246042061,23.97,23.72,23.71,10.0]
[1674246042256,17.0,23.719,23.708,10.0]
[1674246042480,17.0,23.719,23.706,10.0]
[1674246042685,21.14215,23.719,23.706,10.0]
[1674246043332,4.14215,23.719,23.706,10.0]
[1674246043512,17.0,23.718,23.706,10.0]
[1674246044157,31.61,23.729,23.706,10.0]
[1674246044366,23.97,23.72,23.706,10.0]
[1674246044575,17.0,23.719,23.706,10.0]
[1674246044798,21.14215,23.719,23.706,10.0]
[1674246045954,17.0,23.719,23.706,10.0]
[1674246047193,43.75576951,23.718,23.693,10.0]
[1674246047403,23.93,23.71,23.693,10.0]
[1674246047730,17.0,23.709,23.693,10.0]
[1674246048068,21.14215,23.709,23.693,10.0]
[1674246048592,24.01,23.7,23.693,10.0]
[1674246049109,17.0,23.699,23.693,10.0]
[1674246049509,17.0,23.7,23.693,10.0]
[1674246049715,17.0,23.7,23.691,10.0]
[1674246049957,4.14215,23.699,23.684,10.0]
[1674246050136,48.65,23.698,23.684,10.0]
[1674246050346,4.14215,23.698,23.684,10.0]
[1674246050557,35.93405211,23.698,23.684,10.0]
[1674246050766,24.01,23.71,23.684,10.0]
[1674246050997,28.15215,23.71,23.684,10.0]
[1674246051203,4.14215,23.709,23.684,10.0]
[1674246051405,20.0,23.713,23.686,31.67]
[1674246051613,31.63,23.717,23.687,10.0]
[1674246051831,24.15,23.71,23.688,31.67]
[1674246052139,52.04791951,23.71,23.687,10.0]
[1674246052355,4.14215,23.709,23.687,10.0]
[1674246052769,4.14215,23.709,23.687,9.5]
[1674246053511,24.15,23.71,23.687,9.5]
[1674246053724,31.63,23.715,23.687,9.5]
[1674246053917,20.0,23.714,23.688,32.63]
[1674246054130,20.0,23.714,23.688,31.67]
[1674246054339,20.0,23.714,23.689,10.0]
[1674246054555,51.63,23.719,23.689,10.0]
[1674246054767,4.14215,23.718,23.69,111.7952]
[1674246054974,31.63,23.717,23.69,111.7952]
[1674246055185,24.14215,23.716,23.69,111.7952]
[1674246055395,35.77215,23.715,23.691,10.0]
[1674246055602,23.97,23.71,23.691,10.0]
[1674246055817,55.78215,23.709,23.691,10.0]
[1674246056042,4.14215,23.708,23.691,10.0]
[1674246056261,31.64,23.707,23.691,10.0]
[1674246056786,31.63,23.719,23.691,10.0]
[1674246056988,31.62,23.726,23.691,10.0]
[1674246057297,4.14215,23.725,23.691,10.0]
[1674246057495,31.62,23.724,23.692,37.96]
[1674246057715,31.6,23.736,23.693,39.22508653]
[1674246057916,4.14215,23.736,23.694,8.81082138]
[1674246058133,4.14215,23.736,23.7,24.15]
[1674246058342,31.59,23.748,23.702,5.14782791]
[1674246058563,31.57,23.758,23.71,23.96]
[1674246058884,4.14215,23.757,23.711,51.64]
[1674246059194,31.58,23.756,23.712,23.9135901]
[1674246059381,31.58,23.756,23.713,51.63]
[1674246059605,20.0,23.755,23.714,24.70072533]
[1674246059813,20.0,23.755,23.715,57.7507648]
[1674246060022,31.58,23.754,23.716,17.96]
[1674246060251,3.75576951,23.754,23.72,23.96]
[1674246060444,3.75576951,23.754,23.721,72.74259]
[1674246060445,35.93405211,23.754,23.721,72.74259]
[1674246060648,23.75576951,23.758,23.721,73.70259]
[1674246060862,23.75576951,23.753,23.721,73.70259]
[1674246061089,23.75576951,23.753,23.721,69.58]
[1674246061406,26.58,23.759,23.721,69.58]
[1674246061407,26.58,23.759,23.721,79.58]
[1674246061722,4.14215,23.758,23.722,22.1425965]
[1674246061909,4.14215,23.758,23.723,69.58]
[1674246062354,50.32576951,23.769,23.724,22.1425965]
[1674246062668,4.14215,23.768,23.725,69.58]
[1674246062858,26.57,23.767,23.725,69.58]
[1674246063063,26.57,23.767,23.726,23.39614639]
[1674246063282,4.14215,23.768,23.731,4.46859288]
[1674246063493,4.14215,23.768,23.74,24.15]
[1674246063714,4.14215,23.768,23.741,51.6]
[1674246063715,27.89791951,23.768,23.741,51.6]
[1674246063926,23.75576951,23.767,23.741,20.0]
[1674246064115,50.11576951,23.767,23.741,20.0]
[1674246064340,23.75576951,23.767,23.733,31.61]
[1674246064534,26.37,23.766,23.734,0.96]
[1674246064750,20.0,23.765,23.732,118.6673]
[1674246065081,26.37,23.764,23.732,118.6673]
[1674246065277,26.37,23.764,23.735,10.0]
[1674246065278,24.01,23.76,23.735,10.0]
[1674246065482,63.37,23.759,23.735,10.0]
[1674246065697,46.37,23.759,23.735,10.0]
[1674246065924,20.0,23.759,23.735,10.0]
[1674246066119,50.12576951,23.758,23.735,10.0]
[1674246066446,43.75576951,23.757,23.735,10.0]
[1674246066655,26.38,23.756,23.735,10.0]
[1674246066863,23.75576951,23.764,23.735,10.0]
[1674246067094,46.35,23.763,23.735,10.0]
[1674246067274,20.0,23.763,23.736,31.6]
[1674246067600,24.03,23.76,23.735,10.0]
[1674246067804,4.14215,23.756,23.735,10.0]
[1674246068126,50.11576951,23.755,23.737,10.0]
[1674246068323,20.0,23.754,23.737,10.0]
[1674246068540,26.36,23.753,23.737,10.0]
[1674246068860,20.0,23.752,23.737,10.0]
[1674246069498,23.97,23.75,23.737,10.0]
[1674246069697,63.37,23.749,23.737,10.0]
[1674246069901,164.94945797,23.749,23.732,10.0]
[1674246070120,24.15,23.74,23.728,10.0]
[1674246070436,63.36,23.739,23.723,10.0]
[1674246070751,63.36,23.739,23.715,114.9929]
[1674246070969,63.36,23.739,23.716,10.0]
[1674246071361,26.36,23.739,23.716,10.0]
[1674246071576,26.35,23.747,23.716,10.0]
[1674246071807,26.35,23.749,23.722,20.96]
[1674246072040,4.14215,23.748,23.723,31.62]
[1674246072223,50.10576951,23.747,23.717,31.63]
[1674246072412,24.15,23.74,23.716,10.0]
[1674246072753,46.36,23.739,23.717,10.0]
[1674246072961,126.6,23.738,23.717,10.0]
[1674246073153,126.6,23.736,23.717,10.0]
[1674246073364,63.36,23.735,23.717,10.0]
[1674246073578,17.0,23.734,23.717,10.0]
[1674246073787,46.36,23.733,23.717,10.0]
[1674246073995,17.0,23.732,23.717,10.0]
[1674246074209,20.0,23.731,23.717,10.0]
[1674246074644,16.7,23.731,23.717,10.0]
[1674246074955,17.0,23.734,23.717,10.0]
[1674246075163,17.0,23.73,23.717,10.0]
[1674246075367,23.97,23.73,23.717,10.0]
[1674246075587,43.36,23.729,23.716,10.0]
[1674246075829,43.36,23.729,23.709,10.0]
[1674246076228,20.0,23.728,23.709,10.0]
[1674246076426,43.36,23.727,23.709,10.0]
[1674246076631,20.0,23.726,23.709,10.0]
[1674246076872,17.0,23.725,23.709,10.0]
[1674246077061,26.35,23.729,23.709,10.0]
[1674246077270,17.0,23.729,23.71,31.64]
[1674246077598,17.0,23.729,23.709,10.0]
[1674246078006,26.36,23.728,23.709,10.0]
[1674246078218,37.0,23.727,23.709,10.0]
[1674246078433,26.36,23.726,23.709,10.0]
[1674246078642,17.0,23.725,23.709,10.0]
[1674246078863,23.75576951,23.733,23.709,10.0]
[1674246079072,26.35,23.732,23.709,10.0]
[1674246079290,26.35,23.738,23.709,10.0]
[1674246079489,54.06791895,23.744,23.71,55.03614639]
[1674246079688,4.14215,23.743,23.711,20.0]
[1674246079897,4.14215,23.743,23.712,49.59]